[Event "FIDE Women World-chT-KO 2021"]
[Site "Sitges"]
[Date "2021.09.30"]
[Round "1.1"]
[White "Dauletova, Gulmira"]
[Black "Gomes, Mary Ann"]
[Result "0-1"]
[ECO "B41"]
[WhiteElo "2257"]
[BlackElo "2354"]
[Annotator "ChessBase"]
[PlyCount "170"]
[EventDate "2021.09.30"]
[EventType "team-tourn"]
[EventCountry "ESP"]
[SourceTitle "playchess.com"]
[Source "ChessBase"]
[SourceQuality "1"]
[WhiteTeam "Kazakhstan"]
[BlackTeam "India"]
[WhiteTeamCountry "KAZ"]
[BlackTeamCountry "IND"]
[TimeControl "2700+10"]

1. e4 {[%emt 0:00:03]} c5 {[%emt 0:00:10]} 2. Nf3 {[%emt 0:00:08]} e6 {[%emt 0:
00:06]} 3. d4 {[%emt 0:00:14]} cxd4 {[%emt 0:00:08]} 4. Nxd4 {[%emt 0:00:03]}
a6 {[%emt 0:00:03]} 5. c4 {[%emt 0:00:21]} Nf6 {[%emt 0:00:20]} 6. Nc3 {
[%emt 0:00:05]} Qc7 {[%emt 0:00:04]} 7. a3 {[%emt 0:00:07]} b6 {[%emt 0:00:09]}
8. Be3 {[%emt 0:00:13]} Bb7 {[%emt 0:00:07]} 9. f3 {[%emt 0:00:06]} Be7 {
[%emt 0:00:17]} 10. Rc1 {[%emt 0:00:23]} O-O {[%emt 0:01:07]} 11. Qd2 {[%emt 0:
00:25]} d6 {[%emt 0:00:17]} 12. Be2 {[%emt 0:00:17]} Nbd7 {[%emt 0:00:04]} 13.
O-O {[%emt 0:00:31]} Rac8 {[%emt 0:00:03]} 14. b4 {[%emt 0:00:21]} Qb8 {
[%emt 0:00:07]} 15. Rfd1 {[%emt 0:00:37]} Rfe8 {[%emt 0:00:05]} 16. Bf1 {
[%emt 0:00:49]} Bd8 {[%emt 0:00:04]} 17. Nb3 {[%emt 0:00:15]} Bc7 {[%emt 0:00:
05]} 18. Bf4 {[%emt 0:00:39]} Ne5 {[%emt 0:00:48]} 19. Bxe5 {[%emt 0:00:26]}
dxe5 {[%emt 0:00:02]} 20. c5 {[%emt 0:00:04]} Qa7 {[%emt 0:02:24]} 21. Kh1 {
[%emt 0:02:23]} Red8 {[%emt 0:00:41]} 22. Qe2 {[%emt 0:00:47]} Nh5 {[%emt 0:04:
19]} 23. Na4 {[%emt 0:02:12]} Nf4 {[%emt 0:01:20]} 24. Qb2 {[%emt 0:05:15]} b5
{[%emt 0:03:01]} 25. Nc3 {[%emt 0:00:05]} Bc6 {[%emt 0:00:04]} 26. Qf2 {
[%emt 0:01:20]} f5 {[%emt 0:00:52]} 27. g3 {[%emt 0:07:02]} Nh5 {[%emt 0:01:38]
} 28. Na1 {[%emt 0:01:39]} Kh8 {[%emt 0:03:02]} 29. Nc2 {[%emt 0:01:59]} Nf6 {
[%emt 0:03:19]} 30. Bg2 {[%emt 0:01:31]} Qa8 {[%emt 0:00:26]} 31. Qe2 {[%emt 0:
00:31]} Rxd1+ {[%emt 0:04:07]} 32. Rxd1 {[%emt 0:00:01]} Rf8 {[%emt 0:00:02]}
33. Kg1 {[%emt 0:00:47]} Qe8 {[%emt 0:00:21]} 34. Ne3 {[%emt 0:03:40]} f4 {
[%emt 0:01:41]} 35. Nf1 {[%emt 0:00:24]} fxg3 {[%emt 0:00:04]} 36. hxg3 {
[%emt 0:00:42]} Qg6 {[%emt 0:03:00]} 37. a4 {[%emt 0:01:27]} Rb8 {[%emt 0:01:
26]} 38. axb5 {[%emt 0:00:11]} Bxb5 {[%emt 0:00:47]} 39. Nxb5 {[%emt 0:00:09]}
Rxb5 {[%emt 0:00:02]} 40. Qc4 {[%emt 0:00:18]} Qe8 {[%emt 0:00:36]} 41. Ra1 {
[%emt 0:01:59]} Qc6 {[%emt 0:02:17]} 42. Bh3 {[%emt 0:00:53]} a5 {[%emt 0:00:
21]} 43. Qxe6 {[%emt 0:01:44]} Qxe6 {[%emt 0:00:55]} 44. Bxe6 {[%emt 0:00:01]}
Rxb4 {[%emt 0:02:05]} 45. Ne3 {[%emt 0:00:39]} Rb5 {[%emt 0:01:13]} 46. Rc1 {
[%emt 0:00:11]} a4 {[%emt 0:00:19]} 47. g4 {[%emt 0:00:46]} h6 {[%emt 0:00:14]}
48. Kf1 {[%emt 0:01:19]} a3 {[%emt 0:00:18]} 49. Ke2 {[%emt 0:01:45]} Ba5 {
[%emt 0:06:02]} 50. Rc2 {[%emt 0:01:19]} Ne8 {[%emt 0:00:34]} 51. Bd7 {[%emt 0:
01:07]} Rb2 {[%emt 0:00:32]} 52. Be6 {[%emt 0:01:04]} Nc7 {[%emt 0:00:26]} 53.
Bc4 {[%emt 0:00:37]} Nb5 {[%emt 0:00:24]} 54. Kd3 {[%emt 0:01:43]} Nd4 {
[%emt 0:00:07]} 55. Rxb2 {[%emt 0:00:18]} axb2 {[%emt 0:00:02]} 56. Ba2 {
[%emt 0:00:01]} g6 {[%emt 0:00:23]} 57. Nc4 {[%emt 0:00:13]} Bc7 {[%emt 0:00:
18]} 58. Nxb2 {[%emt 0:00:03]} Nxf3 {[%emt 0:00:01]} 59. Be6 {[%emt 0:00:21]}
Kg7 {[%emt 0:00:04]} 60. Ke3 {[%emt 0:00:19]} Ng5 {[%emt 0:00:05]} 61. Bc8 {
[%emt 0:00:05]} Kf6 {[%emt 0:00:32]} 62. Nd3 {[%emt 0:00:04]} Ba5 {[%emt 0:00:
33]} 63. Nb2 {[%emt 0:00:17]} Bc3 {[%emt 0:00:07]} 64. Na4 {[%emt 0:00:01]}
Bd4+ {[%emt 0:00:11]} 65. Kd3 {[%emt 0:00:01]} h5 {[%emt 0:00:06]} 66. gxh5 {
[%emt 0:00:00]} gxh5 {[%emt 0:00:02]} 67. c6 {[%emt 0:00:08]} Ke7 {[%emt 0:00:
01]} 68. Bf5 {[%emt 0:00:30]} Kd6 {[%emt 0:00:04]} 69. Nc3 {[%emt 0:00:26]}
Bxc3 {[%emt 0:00:06]} 70. Kxc3 {[%emt 0:00:01]} Kxc6 {[%emt 0:00:03]} 71. Kd3 {
[%emt 0:00:19]} h4 {[%emt 0:00:05]} 72. Ke3 {[%emt 0:00:05]} Kc5 {[%emt 0:00:
03]} 73. Bc8 {[%emt 0:00:18]} Kc4 {[%emt 0:00:15]} 74. Bd7 {[%emt 0:00:08]} h3
{[%emt 0:00:08]} 75. Kf2 {[%emt 0:00:12]} Nxe4+ {[%emt 0:00:01]} 76. Kg1 {
[%emt 0:00:03]} Ng5 {[%emt 0:00:07]} 77. Bc6 {[%emt 0:00:14]} Kd3 {[%emt 0:00:
07]} 78. Kh2 {[%emt 0:00:08]} e4 {[%emt 0:00:03]} 79. Kg3 {[%emt 0:00:14]} e3 {
[%emt 0:00:05]} 80. Bb5+ {[%emt 0:00:04]} Kd2 {[%emt 0:00:02]} 81. Ba6 {
[%emt 0:00:08]} e2 {[%emt 0:00:03]} 82. Bxe2 {[%emt 0:00:02]} Kxe2 {[%emt 0:00:
02]} 83. Kh2 {[%emt 0:00:01]} Kf3 {[%emt 0:00:03]} 84. Kg1 {[%emt 0:00:13]} Kg3
{[%emt 0:00:02]} 85. Kh1 {[%emt 0:00:01]} Ne4 {[%emt 0:00:01]} 0-1

[Event "FIDE Women World-chT-KO 2021"]
[Site "Sitges"]
[Date "2021.09.30"]
[Round "1.1"]
[White "Arribas Robaina, Maritza"]
[Black "Shuvalova, Polina"]
[Result "0-1"]
[ECO "B91"]
[WhiteElo "2204"]
[BlackElo "2510"]
[Annotator "ChessBase"]
[PlyCount "116"]
[EventDate "2021.09.30"]
[EventType "team-tourn"]
[EventCountry "ESP"]
[SourceTitle "playchess.com"]
[Source "ChessBase"]
[SourceQuality "1"]
[WhiteTeam "Cuba"]
[BlackTeam "Russia"]
[WhiteTeamCountry "CUB"]
[BlackTeamCountry "RUS"]
[TimeControl "2700+10"]

1. e4 {[%emt 0:00:02]} c5 {[%emt 0:00:01]} 2. Nf3 {[%emt 0:00:02]} d6 {[%emt 0:
00:02]} 3. Nc3 {[%emt 0:00:03]} Nf6 {[%emt 0:00:46]} 4. d4 {[%emt 0:00:15]}
cxd4 {[%emt 0:00:03]} 5. Nxd4 {[%emt 0:00:02]} a6 {[%emt 0:00:05]} 6. g3 {
[%emt 0:00:09]} e5 {[%emt 0:00:22]} 7. Nde2 {[%emt 0:00:09]} Be7 {[%emt 0:00:
31]} 8. Bg2 {[%emt 0:00:01]} O-O {[%emt 0:00:30]} 9. O-O {[%emt 0:00:03]} b5 {
[%emt 0:01:48]} 10. Bg5 {[%emt 0:01:11]} Nbd7 {[%emt 0:00:06]} 11. a4 {[%emt 0:
02:20]} Bb7 {[%emt 0:02:55]} 12. Bxf6 {[%emt 0:02:21]} Nxf6 {[%emt 0:00:08]}
13. axb5 {[%emt 0:00:26]} axb5 {[%emt 0:00:06]} 14. Qd3 {[%emt 0:00:02]} b4 {
[%emt 0:00:43]} 15. Nd5 {[%emt 0:00:05]} Nxd5 {[%emt 0:00:35]} 16. exd5 {
[%emt 0:00:02]} Qb6 {[%emt 0:00:07]} 17. Rfe1 {[%emt 0:02:36]} Qc5 {[%emt 0:01:
20]} 18. Rxa8 {[%emt 0:01:47]} Rxa8 {[%emt 0:00:17]} 19. Nd4 {[%emt 0:01:06]}
Bd8 {[%emt 0:02:28]} 20. Nb3 {[%emt 0:00:08]} Qb6 {[%emt 0:00:54]} 21. h4 {
[%emt 0:00:15]} h5 {[%emt 0:01:11]} 22. Nd2 {[%emt 0:00:29]} Ba6 {[%emt 0:00:
58]} 23. Qf5 {[%emt 0:00:31]} g6 {[%emt 0:00:10]} 24. Qf3 {[%emt 0:01:13]} Rc8
{[%emt 0:00:17]} 25. Qb3 {[%emt 0:00:43]} Qd4 {[%emt 0:01:42]} 26. Ne4 {
[%emt 0:00:52]} Qb6 {[%emt 0:03:35]} 27. Qa4 {[%emt 0:05:57]} Be7 {[%emt 0:03:
38]} 28. Ra1 {[%emt 0:02:18]} Bb7 {[%emt 0:01:02]} 29. Qb3 {[%emt 0:00:15]} Kg7
{[%emt 0:03:17]} 30. Ra4 {[%emt 0:01:04]} Qd4 {[%emt 0:01:45]} 31. c3 {[%emt 0:
03:21]} Qxd5 {[%emt 0:03:22]} 32. Rxb4 {[%emt 0:00:06]} Qxb3 {[%emt 0:02:00]}
33. Rxb3 {[%emt 0:00:02]} Bc6 {[%emt 0:00:42]} 34. Rb6 {[%emt 0:03:32]} d5 {
[%emt 0:00:21]} 35. Nd2 {[%emt 0:00:28]} f5 {[%emt 0:01:01]} 36. b4 {[%emt 0:
02:13]} e4 {[%emt 0:00:26]} 37. Nb3 {[%emt 0:00:07]} Be8 {[%emt 0:00:26]} 38.
Rb7 {[%emt 0:00:22]} Kf6 {[%emt 0:00:22]} 39. Rb6+ {[%emt 0:01:13]} Kf7 {
[%emt 0:00:27]} 40. Nc5 {[%emt 0:01:52]} Bxc5 {[%emt 0:00:18]} 41. bxc5 {
[%emt 0:00:02]} Rxc5 {[%emt 0:00:02]} 42. Rb3 {[%emt 0:00:01]} Kf6 {[%emt 0:02:
13]} 43. Kf1 {[%emt 0:00:08]} Ke5 {[%emt 0:00:37]} 44. Ke2 {[%emt 0:02:25]}
Bb5+ {[%emt 0:00:04]} 45. Kd2 {[%emt 0:00:11]} Bd3 {[%emt 0:00:31]} 46. Rb6 {
[%emt 0:00:15]} d4 {[%emt 0:00:57]} 47. cxd4+ {[%emt 0:00:42]} Kxd4 {[%emt 0:
00:02]} 48. Rd6+ {[%emt 0:00:02]} Ke5 {[%emt 0:01:53]} 49. Rxg6 {[%emt 0:00:02]
} Rc2+ {[%emt 0:00:23]} 50. Ke1 {[%emt 0:00:01]} Rc1+ {[%emt 0:01:27]} 51. Kd2
{[%emt 0:00:02]} Rg1 {[%emt 0:00:06]} 52. f4+ {[%emt 0:00:18]} Kd4 {[%emt 0:00:
14]} 53. Rd6+ {[%emt 0:00:32]} Kc5 {[%emt 0:00:02]} 54. Bxe4 {[%emt 0:02:41]}
Bxe4 {[%emt 0:00:49]} 55. Rg6 {[%emt 0:00:11]} Kd4 {[%emt 0:00:12]} 56. Rd6+ {
[%emt 0:01:24]} Bd5 {[%emt 0:00:03]} 57. Ra6 {[%emt 0:00:10]} Rxg3 {[%emt 0:00:
13]} 58. Ra4+ {[%emt 0:00:01]} Bc4 {[%emt 0:00:02]} 0-1

[Event "FIDE Women World-chT-KO 2021"]
[Site "Sitges"]
[Date "2021.09.30"]
[Round "1.1"]
[White "Ghukasyan, Siranush"]
[Black "Buksa, Nataliya"]
[Result "1/2-1/2"]
[ECO "B31"]
[WhiteElo "2168"]
[BlackElo "2417"]
[Annotator "ChessBase"]
[PlyCount "64"]
[EventDate "2021.09.30"]
[EventType "team-tourn"]
[EventCountry "ESP"]
[SourceTitle "playchess.com"]
[Source "ChessBase"]
[SourceQuality "1"]
[WhiteTeam "Armenia"]
[BlackTeam "Ukraine"]
[WhiteTeamCountry "ARM"]
[BlackTeamCountry "UKR"]
[TimeControl "2700+10"]

1. e4 {[%emt 0:00:03]} c5 {[%emt 0:00:05]} 2. Nf3 {[%emt 0:00:01]} Nc6 {
[%emt 0:00:02]} 3. Bb5 {[%emt 0:00:02]} g6 {[%emt 0:00:15]} 4. Bxc6 {[%emt 0:
00:02]} bxc6 {[%emt 0:00:09]} 5. O-O {[%emt 0:00:05]} Bg7 {[%emt 0:00:01]} 6.
Re1 {[%emt 0:00:06]} Qc7 {[%emt 0:00:08]} 7. c3 {[%emt 0:00:12]} d6 {[%emt 0:
00:17]} 8. h3 {[%emt 0:00:25]} Nf6 {[%emt 0:00:26]} 9. d4 {[%emt 0:02:07]} cxd4
{[%emt 0:00:25]} 10. cxd4 {[%emt 0:00:03]} O-O {[%emt 0:00:06]} 11. Nc3 {
[%emt 0:00:01]} c5 {[%emt 0:00:59]} 12. e5 {[%emt 0:01:28]} dxe5 {[%emt 0:01:
05]} 13. dxe5 {[%emt 0:00:17]} Rd8 {[%emt 0:00:02]} 14. Qe2 {[%emt 0:02:00]}
Nd5 {[%emt 0:03:14]} 15. Nxd5 {[%emt 0:04:11]} Rxd5 {[%emt 0:00:08]} 16. Bf4 {
[%emt 0:00:56]} Bb7 {[%emt 0:01:19]} 17. Rac1 {[%emt 0:00:18]} Qb6 {[%emt 0:07:
55]} 18. Rc3 {[%emt 0:07:56]} Rad8 {[%emt 0:02:02]} 19. Rb3 {[%emt 0:04:34]}
Qc6 {[%emt 0:00:40]} 20. Qb5 {[%emt 0:00:37]} Qxb5 {[%emt 0:12:12]} 21. Rxb5 {
[%emt 0:00:02]} R8d7 {[%emt 0:00:01]} 22. e6 {[%emt 0:02:54]} fxe6 {[%emt 0:00:
02]} 23. Ne5 {[%emt 0:00:31]} Bxe5 {[%emt 0:01:22]} 24. Rxe5 {[%emt 0:00:24]}
c4 {[%emt 0:03:50]} 25. Rb4 {[%emt 0:02:29]} Rxe5 {[%emt 0:02:24]} 26. Bxe5 {
[%emt 0:00:05]} Bd5 {[%emt 0:00:08]} 27. Rb8+ {[%emt 0:00:18]} Kf7 {[%emt 0:00:
02]} 28. Rh8 {[%emt 0:00:19]} h5 {[%emt 0:02:34]} 29. Rh7+ {[%emt 0:00:27]} Kf8
{[%emt 0:00:01]} 30. Rh8+ {[%emt 0:01:45]} Kf7 {[%emt 0:00:02]} 31. Rh7+ {
[%emt 0:00:11]} Kf8 {[%emt 0:00:01]} 32. Rh8+ {[%emt 0:00:32]} Kf7 1/2-1/2

[Event "FIDE Women World-chT-KO 2021"]
[Site "Sitges"]
[Date "2021.09.30"]
[Round "1.2"]
[White "Abdumalik, Zhansaya"]
[Black "Harika, Dronavalli"]
[Result "0-1"]
[ECO "C92"]
[WhiteElo "2502"]
[BlackElo "2511"]
[Annotator "ChessBase"]
[PlyCount "94"]
[EventDate "2021.09.30"]
[EventType "team-tourn"]
[EventCountry "ESP"]
[SourceTitle "playchess.com"]
[Source "ChessBase"]
[SourceQuality "1"]
[WhiteTeam "Kazakhstan"]
[BlackTeam "India"]
[WhiteTeamCountry "KAZ"]
[BlackTeamCountry "IND"]
[TimeControl "2700+10"]

1. e4 {[%emt 0:00:03]} e5 {[%emt 0:00:01]} 2. Nf3 {[%emt 0:00:19]} Nc6 {
[%emt 0:00:03]} 3. Bb5 {[%emt 0:00:49]} a6 {[%emt 0:00:03]} 4. Ba4 {[%emt 0:00:
01]} Nf6 {[%emt 0:00:02]} 5. O-O {[%emt 0:00:03]} Be7 {[%emt 0:00:07]} 6. Re1 {
[%emt 0:00:05]} b5 {[%emt 0:00:03]} 7. Bb3 {[%emt 0:00:01]} d6 {[%emt 0:00:01]}
8. c3 {[%emt 0:00:02]} O-O {[%emt 0:00:11]} 9. h3 {[%emt 0:00:02]} Bb7 {
[%emt 0:01:17]} 10. d4 {[%emt 0:00:35]} Re8 {[%emt 0:00:25]} 11. Ng5 {[%emt 0:
00:28]} Rf8 {[%emt 0:00:02]} 12. Nf3 {[%emt 0:00:02]} Re8 {[%emt 0:00:01]} 13.
Nbd2 {[%emt 0:00:38]} Bf8 {[%emt 0:00:19]} 14. a3 {[%emt 0:00:16]} h6 {[%emt 0:
00:45]} 15. Bc2 {[%emt 0:00:52]} Nb8 {[%emt 0:01:12]} 16. a4 {[%emt 0:02:04]}
Nbd7 {[%emt 0:01:25]} 17. Bd3 {[%emt 0:01:09]} c6 {[%emt 0:01:06]} 18. b3 {
[%emt 0:01:11]} g6 {[%emt 0:01:55]} 19. Qc2 {[%emt 0:01:30]} Rc8 {[%emt 0:01:
30]} 20. Bb2 {[%emt 0:02:08]} Bg7 {[%emt 0:00:45]} 21. Rad1 {[%emt 0:03:38]}
Qc7 {[%emt 0:01:13]} 22. Qb1 {[%emt 0:00:15]} Kh7 {[%emt 0:02:25]} 23. Qa1 {
[%emt 0:01:31]} Nh5 {[%emt 0:01:36]} 24. Bf1 {[%emt 0:01:53]} Ra8 {[%emt 0:04:
56]} 25. Rc1 {[%emt 0:04:25]} Qb8 {[%emt 0:04:45]} 26. c4 {[%emt 0:02:03]} exd4
{[%emt 0:02:10]} 27. Bxd4 {[%emt 0:02:35]} Bxd4 {[%emt 0:01:32]} 28. Nxd4 {
[%emt 0:00:31]} c5 {[%emt 0:00:15]} 29. Nc2 {[%emt 0:00:45]} bxa4 {[%emt 0:00:
14]} 30. Qxa4 {[%emt 0:00:33]} Ndf6 {[%emt 0:05:02]} 31. f3 {[%emt 0:02:51]}
Qd8 {[%emt 0:00:12]} 32. Ne3 {[%emt 0:00:29]} Nd7 {[%emt 0:00:19]} 33. Nd5 {
[%emt 0:01:20]} Ne5 {[%emt 0:01:10]} 34. Rcd1 {[%emt 0:05:51]} Bxd5 {[%emt 0:
01:16]} 35. exd5 {[%emt 0:00:19]} a5 {[%emt 0:02:21]} 36. Qa1 {[%emt 0:02:13]}
Qg5 {[%emt 0:01:19]} 37. Qc3 {[%emt 0:00:22]} f5 {[%emt 0:00:40]} 38. Kh1 {
[%emt 0:02:44]} Ra7 {[%emt 0:04:07]} 39. Ra1 {[%emt 0:01:02]} Qh4 {[%emt 0:01:
04]} 40. Rec1 {[%emt 0:01:16]} Qf2 {[%emt 0:01:57]} 41. Rxa5 {[%emt 0:00:09]}
Rae7 {[%emt 0:00:40]} 42. Rca1 {[%emt 0:00:14]} Nf7 {[%emt 0:00:26]} 43. Ra7 {
[%emt 0:00:59]} Ng5 {[%emt 0:00:26]} 44. Rxe7+ {[%emt 0:01:01]} Rxe7 {[%emt 0:
00:00]} 45. Ra8 {[%emt 0:00:40]} Rg7 {[%emt 0:00:04]} 46. Re8 {[%emt 0:00:39]}
Ng3+ {[%emt 0:00:22]} 47. Kh2 {[%emt 0:00:01]} Qxd2 {[%emt 0:00:04]} 0-1

[Event "FIDE Women World-chT-KO 2021"]
[Site "Sitges"]
[Date "2021.09.30"]
[Round "1.2"]
[White "Kashlinskaya, Alina"]
[Black "Perez Rodriguez, Jennifer"]
[Result "1-0"]
[ECO "D41"]
[WhiteElo "2493"]
[BlackElo "2150"]
[Annotator "ChessBase"]
[PlyCount "65"]
[EventDate "2021.09.30"]
[EventType "team-tourn"]
[EventCountry "ESP"]
[SourceTitle "playchess.com"]
[Source "ChessBase"]
[SourceQuality "1"]
[WhiteTeam "RUS"]
[BlackTeam "FIDE Americas"]
[WhiteTeamCountry "RUS"]
[TimeControl "2700+10"]

1. d4 {[%emt 0:00:03]} d5 {[%emt 0:00:04]} 2. c4 {[%emt 0:00:02]} e6 {[%emt 0:
00:03]} 3. Nc3 {[%emt 0:00:34]} Nf6 {[%emt 0:00:05]} 4. Nf3 {[%emt 0:00:04]} c5
{[%emt 0:00:18]} 5. cxd5 {[%emt 0:00:15]} Nxd5 {[%emt 0:00:02]} 6. e4 {[%emt 0:
00:02]} Nxc3 {[%emt 0:00:04]} 7. bxc3 {[%emt 0:00:02]} cxd4 {[%emt 0:00:02]} 8.
cxd4 {[%emt 0:00:02]} Bb4+ {[%emt 0:00:03]} 9. Bd2 {[%emt 0:00:02]} Bxd2+ {
[%emt 0:00:09]} 10. Qxd2 {[%emt 0:00:02]} O-O {[%emt 0:00:07]} 11. Bc4 {
[%emt 0:00:07]} Nd7 {[%emt 0:01:33]} 12. O-O {[%emt 0:00:05]} b6 {[%emt 0:00:
02]} 13. d5 {[%emt 0:00:48]} Nc5 {[%emt 0:02:13]} 14. Rfe1 {[%emt 0:00:42]}
exd5 {[%emt 0:01:23]} 15. exd5 {[%emt 0:00:49]} Qd6 {[%emt 0:02:28]} 16. Ne5 {
[%emt 0:05:06]} Bb7 {[%emt 0:03:00]} 17. Rad1 {[%emt 0:00:20]} Rad8 {[%emt 0:
01:42]} 18. a3 {[%emt 0:01:50]} Rfe8 {[%emt 0:05:44]} 19. Qd4 {[%emt 0:00:46]}
Re7 {[%emt 0:03:48]} 20. Re3 {[%emt 0:01:03]} a6 {[%emt 0:01:27]} 21. h4 {
[%emt 0:05:27]} Rde8 {[%emt 0:00:54]} 22. Nxf7 {[%emt 0:05:44]} Kxf7 {[%emt 0:
00:09]} 23. Re6 {[%emt 0:00:09]} Qd7 {[%emt 0:10:57]} 24. Qf4+ {[%emt 0:03:54]}
Kg8 {[%emt 0:00:01]} 25. Rxe7 {[%emt 0:00:09]} Rxe7 {[%emt 0:00:07]} 26. d6+ {
[%emt 0:00:04]} Re6 {[%emt 0:01:33]} 27. Qe5 {[%emt 0:03:50]} Kf8 {[%emt 0:00:
43]} 28. Bxe6 {[%emt 0:02:07]} Nxe6 {[%emt 0:01:39]} 29. Qxe6 {[%emt 0:01:19]}
Qxe6 {[%emt 0:04:03]} 30. d7 {[%emt 0:00:02]} Qe7 {[%emt 0:00:50]} 31. d8=Q+ {
[%emt 0:00:07]} Qxd8 {[%emt 0:00:00]} 32. Rxd8+ {[%emt 0:00:02]} Ke7 {[%emt 0:
00:01]} 33. Rb8 {[%emt 0:00:06]} 1-0

[Event "FIDE Women World-chT-KO 2021"]
[Site "Sitges"]
[Date "2021.09.30"]
[Round "1.2"]
[White "Javakhishvili, Lela"]
[Black "Mamedjarova, Zeinab"]
[Result "1-0"]
[ECO "A85"]
[WhiteElo "2465"]
[BlackElo "2198"]
[Annotator "ChessBase"]
[PlyCount "61"]
[EventDate "2021.09.30"]
[EventType "team-tourn"]
[EventCountry "ESP"]
[SourceTitle "playchess.com"]
[Source "ChessBase"]
[SourceQuality "1"]
[WhiteTeam "Georgia"]
[WhiteTeamCountry "GEO"]
[TimeControl "2700+10"]

1. d4 {[%emt 0:00:02]} e6 {[%emt 0:00:04]} 2. c4 {[%emt 0:01:14]} f5 {[%emt 0:
00:05]} 3. Nc3 {[%emt 0:00:02]} Nf6 {[%emt 0:00:02]} 4. e3 {[%emt 0:00:14]} Be7
{[%emt 0:00:09]} 5. Bd3 {[%emt 0:00:05]} O-O {[%emt 0:00:05]} 6. Nf3 {[%emt 0:
00:17]} b6 {[%emt 0:00:01]} 7. e4 {[%emt 0:01:43]} fxe4 {[%emt 0:02:03]} 8.
Nxe4 {[%emt 0:00:02]} Bb7 {[%emt 0:00:32]} 9. Nc3 {[%emt 0:02:02]} Qe8 {
[%emt 0:03:13]} 10. O-O {[%emt 0:00:16]} Nc6 {[%emt 0:01:13]} 11. a3 {[%emt 0:
01:13]} a5 {[%emt 0:01:15]} 12. Re1 {[%emt 0:01:53]} Qh5 {[%emt 0:01:47]} 13.
Ne2 {[%emt 0:01:58]} Bd6 {[%emt 0:08:29]} 14. Nf4 {[%emt 0:00:34]} Bxf4 {
[%emt 0:02:04]} 15. Bxf4 {[%emt 0:00:03]} Ne8 {[%emt 0:00:16]} 16. Bg3 {
[%emt 0:02:44]} a4 {[%emt 0:01:53]} 17. d5 {[%emt 0:01:07]} Na5 {[%emt 0:03:58]
} 18. Re5 {[%emt 0:01:32]} Qh6 {[%emt 0:00:57]} 19. Nd4 {[%emt 0:00:47]} g6 {
[%emt 0:06:40]} 20. dxe6 {[%emt 0:00:54]} dxe6 {[%emt 0:00:10]} 21. Nxe6 {
[%emt 0:01:48]} Rf6 {[%emt 0:00:55]} 22. Qg4 {[%emt 0:03:27]} Qd2 {[%emt 0:01:
44]} 23. Re3 {[%emt 0:03:50]} Qxb2 {[%emt 0:01:53]} 24. Rae1 {[%emt 0:00:05]}
Bc8 {[%emt 0:06:12]} 25. Qe4 {[%emt 0:00:46]} Rb8 {[%emt 0:02:12]} 26. Ng5 {
[%emt 0:01:27]} Bb7 {[%emt 0:00:59]} 27. Qh4 {[%emt 0:00:34]} h5 {[%emt 0:00:
36]} 28. Rxe8+ {[%emt 0:00:50]} Rxe8 {[%emt 0:00:01]} 29. Rxe8+ {[%emt 0:00:02]
} Kg7 {[%emt 0:00:15]} 30. Be5 {[%emt 0:01:12]} Qc1+ {[%emt 0:00:12]} 31. Bf1 {
[%emt 0:00:01]} 1-0

[Event "FIDE Women World-chT-KO 2021"]
[Site "Sitges"]
[Date "2021.09.30"]
[Round "1.2"]
[White "Buksa, Nataliya"]
[Black "Ghukasyan, Siranush"]
[Result "1-0"]
[ECO "C95"]
[WhiteElo "2417"]
[BlackElo "2168"]
[Annotator "ChessBase"]
[PlyCount "99"]
[EventDate "2021.09.30"]
[EventType "team-tourn"]
[EventCountry "ESP"]
[SourceTitle "playchess.com"]
[Source "ChessBase"]
[SourceQuality "1"]
[WhiteTeam "Ukraine"]
[BlackTeam "Armenia"]
[WhiteTeamCountry "UKR"]
[BlackTeamCountry "ARM"]
[TimeControl "2700+10"]

1. e4 {[%emt 0:00:01]} e5 {[%emt 0:00:01]} 2. Nf3 {[%emt 0:00:01]} Nc6 {
[%emt 0:00:01]} 3. Bb5 {[%emt 0:00:01]} a6 {[%emt 0:00:01]} 4. Ba4 {[%emt 0:00:
01]} Nf6 {[%emt 0:00:01]} 5. O-O {[%emt 0:00:01]} Be7 {[%emt 0:00:03]} 6. Re1 {
[%emt 0:00:02]} b5 {[%emt 0:00:01]} 7. Bb3 {[%emt 0:00:01]} d6 {[%emt 0:00:02]}
8. c3 {[%emt 0:00:02]} O-O {[%emt 0:00:03]} 9. h3 {[%emt 0:00:02]} Nb8 {
[%emt 0:00:09]} 10. d4 {[%emt 0:00:16]} Nbd7 {[%emt 0:00:03]} 11. Nbd2 {
[%emt 0:00:03]} Bb7 {[%emt 0:00:02]} 12. Bc2 {[%emt 0:00:02]} Re8 {[%emt 0:00:
04]} 13. Nf1 {[%emt 0:00:02]} Bf8 {[%emt 0:00:01]} 14. Ng3 {[%emt 0:00:01]} g6
{[%emt 0:00:02]} 15. b3 {[%emt 0:00:01]} Bg7 {[%emt 0:00:12]} 16. d5 {[%emt 0:
00:08]} Nb6 {[%emt 0:02:25]} 17. Rb1 {[%emt 0:00:03]} c5 {[%emt 0:00:43]} 18.
c4 {[%emt 0:01:22]} b4 {[%emt 0:01:12]} 19. Bg5 {[%emt 0:00:55]} h6 {[%emt 0:
00:08]} 20. Be3 {[%emt 0:00:19]} a5 {[%emt 0:00:25]} 21. Nh2 {[%emt 0:06:31]}
Qe7 {[%emt 0:07:36]} 22. Rf1 {[%emt 0:07:36]} Nbd7 23. f3 {[%emt 0:05:43]} Kh7
{[%emt 0:06:57]} 24. Qd2 {[%emt 0:00:06]} Ng8 {[%emt 0:01:36]} 25. Rf2 {
[%emt 0:03:16]} Rf8 {[%emt 0:04:12]} 26. Rbf1 {[%emt 0:00:40]} Bc8 {[%emt 0:03:
41]} 27. Ne2 {[%emt 0:01:23]} a4 {[%emt 0:01:19]} 28. g3 {[%emt 0:05:07]} axb3
{[%emt 0:00:24]} 29. axb3 {[%emt 0:00:01]} Nb6 {[%emt 0:02:42]} 30. Kg2 {
[%emt 0:00:25]} f5 {[%emt 0:05:49]} 31. f4 {[%emt 0:02:21]} fxe4 {[%emt 0:03:
03]} 32. Bxe4 {[%emt 0:01:15]} exf4 {[%emt 0:01:30]} 33. Rxf4 {[%emt 0:01:22]}
Rxf4 {[%emt 0:00:02]} 34. Bxg6+ {[%emt 0:00:52]} Kh8 {[%emt 0:01:23]} 35. Nxf4
{[%emt 0:00:57]} Bc3 {[%emt 0:00:14]} 36. Qf2 {[%emt 0:00:27]} Nd7 {[%emt 0:00:
53]} 37. Bb1 {[%emt 0:00:08]} Ne5 {[%emt 0:00:13]} 38. Nf3 {[%emt 0:01:02]} Qe8
{[%emt 0:02:19]} 39. Nxe5 {[%emt 0:00:57]} dxe5 {[%emt 0:00:20]} 40. Ng6+ {
[%emt 0:00:37]} Kg7 {[%emt 0:00:01]} 41. Bxc5 {[%emt 0:00:02]} e4 {[%emt 0:00:
13]} 42. Nh4 {[%emt 0:01:35]} Nf6 {[%emt 0:00:16]} 43. Bd4 {[%emt 0:01:11]}
Bxd4 {[%emt 0:00:17]} 44. Qxd4 {[%emt 0:00:02]} Ra6 {[%emt 0:00:24]} 45. c5 {
[%emt 0:00:32]} e3 {[%emt 0:00:53]} 46. d6 {[%emt 0:00:31]} Qe6 {[%emt 0:00:09]
} 47. Nf5+ {[%emt 0:00:29]} Kh8 {[%emt 0:00:20]} 48. Nxe3 {[%emt 0:00:24]}
Qxh3+ {[%emt 0:00:08]} 49. Kg1 {[%emt 0:00:08]} Qxg3+ {[%emt 0:00:05]} 50. Ng2
{[%emt 0:00:01]} 1-0